bitfinex-derivatives/quotes_BTCF0:USTF0_20241224
["timestamp","ask_amount","ask_price","bid_price","bid_amount"]
[1735065360757,0.12100251,98760.0,98756.0,0.05066]
[1735065361364,0.12100251,98760.0,98757.0,0.050659]
[1735065361768,0.12100251,98761.0,98757.0,0.050659]
[1735065362065,0.12100251,98761.0,98760.0,0.050658]
[1735065362555,0.12100251,98761.0,98751.0,0.050662]
[1735065362958,0.12100251,98761.0,98760.0,0.050658]
[1735065363266,0.180057,98762.0,98761.0,0.050657]
[1735065363267,0.30105951,98762.0,98761.0,0.050657]
[1735065364666,0.050668,98740.0,98732.0,0.36418185]
[1735065364864,0.050671,98734.0,98733.0,0.36418185]
[1735065365170,0.050671,98734.0,98733.0,0.41485285]
[1735065365753,0.05754241,98734.0,98733.0,0.41485285]
[1735065365958,0.05754241,98734.0,98733.0,0.36418185]
[1735065366159,0.050675,98727.0,98716.0,0.00064]
[1735065366368,0.411479,98719.0,98715.0,0.050681]
[1735065366681,0.00687141,98719.0,98717.0,0.05068]
[1735065366854,0.00687141,98719.0,98718.0,0.13569]
[1735065367260,0.00687141,98719.0,98718.0,0.50549]
[1735065367661,0.36767141,98719.0,98718.0,0.01309]
[1735065367865,0.00687141,98719.0,98718.0,0.01309]
[1735065368071,0.12106841,98729.0,98719.0,0.050679]
[1735065368365,0.0068653,98728.0,98727.0,0.050675]
[1735065368969,0.0068653,98728.0,98718.0,0.28109]
[1735065369173,0.050675,98726.0,98724.0,0.050676]
[1735065369370,0.0068653,98725.0,98724.0,0.050676]
[1735065370670,0.0068653,98725.0,98724.0,0.052676]
[1735065370867,0.4183413,98725.0,98724.0,0.002]
[1735065371068,0.3676653,98725.0,98696.0,0.3608]
[1735065371274,0.3608,98716.0,98715.0,0.050681]
[1735065371567,0.3676653,98716.0,98715.0,0.050681]
[1735065371975,0.050684,98709.0,98696.0,0.3608]
[1735065372171,0.050685,98707.0,98701.0,0.190488]
[1735065372473,0.0068653,98706.0,98705.0,0.050686]
[1735065373868,0.0068653,98706.0,98705.0,0.053686]
[1735065374073,0.0068653,98706.0,98705.0,0.062686]
[1735065374464,0.00682119,98706.0,98705.0,0.012]
[1735065374663,0.050691,98696.0,98694.0,0.050691]
[1735065374864,0.36762119,98695.0,98694.0,0.050691]
[1735065375170,0.36762119,98695.0,98688.0,0.050695]
[1735065375376,0.14202119,98694.0,98688.0,0.050695]
[1735065375677,0.050694,98690.0,98688.0,0.050695]
[1735065375876,0.00682119,98689.0,98688.0,0.050695]
[1735065376582,0.00680812,98689.0,98688.0,0.050695]
[1735065376877,0.00680812,98689.0,98688.0,0.065695]
[1735065378376,0.00680812,98689.0,98688.0,0.015]
[1735065378877,0.00680812,98689.0,98678.0,0.00151998]
[1735065379067,0.3608,98679.0,98678.0,0.00151998]
[1735065379274,0.36760812,98679.0,98678.0,0.00151998]
[1735065380174,0.36760812,98679.0,98678.0,0.01051998]
[1735065380374,0.66760812,98679.0,98678.0,0.0034846]
[1735065380572,0.76894731,98679.0,98678.0,0.009]
[1735065380767,0.3608,98671.0,98627.0,0.30330965]
[1735065380967,0.3608,98628.0,98627.0,0.30330965]
[1735065381172,0.00680812,98628.0,98627.0,0.35403565]
[1735065381383,0.00680812,98630.0,98627.0,0.35403565]
[1735065381578,0.36760812,98636.0,98627.0,0.050726]
[1735065381874,0.00680812,98635.0,98628.0,0.050725]
[1735065382069,0.050723,98633.0,98620.0,0.09888957]
[1735065382270,0.050723,98633.0,98612.0,0.3608]
[1735065382271,0.00680812,98632.0,98612.0,0.3608]
[1735065382575,0.00680812,98631.0,98612.0,0.3608]
[1735065382777,0.00680812,98630.0,98622.0,0.050728]
[1735065382970,0.3608,98636.0,98622.0,0.050728]
[1735065382971,0.00680283,98629.0,98622.0,0.050728]
[1735065383172,0.00680283,98628.0,98612.0,0.3608]
[1735065383470,0.3608,98620.0,98612.0,0.3608]
[1735065383778,0.050735,98609.0,98608.0,0.00064]
[1735065383988,0.050736,98608.0,98601.0,0.050739]
[1735065384175,0.00679618,98607.0,98601.0,0.050739]
[1735065384377,0.00679618,98607.0,98600.0,0.1]
[1735065384678,0.00679618,98607.0,98605.0,0.050737]
[1735065384984,0.050729,98621.0,98613.0,0.050733]
[1735065384985,0.00679618,98614.0,98613.0,0.050733]
[1735065385285,0.00679618,98620.0,98614.0,0.050732]
[1735065385473,0.00779618,98620.0,98615.0,0.2717]
[1735065385875,0.0077834,98620.0,98615.0,0.2717]
[1735065386079,0.0575134,98620.0,98615.0,0.2717]
[1735065386275,0.0067834,98619.0,98615.0,0.2717]
[1735065386476,0.0067834,98633.0,98615.0,0.2717]
[1735065386671,0.001,98620.0,98615.0,0.2717]
[1735065386985,0.050731,98618.0,98615.0,0.2747]
[1735065387283,0.0067834,98617.0,98615.0,0.2747]
[1735065387674,0.0575144,98617.0,98615.0,0.2747]
[1735065387873,0.0067834,98616.0,98615.0,0.1378]
[1735065388583,0.0067834,98616.0,98615.0,0.1368]
[1735065388784,0.00677656,98616.0,98615.0,0.1368]
[1735065389574,0.00777656,98616.0,98615.0,0.1368]
[1735065389978,0.00777656,98616.0,98615.0,0.002]
[1735065390386,0.41930756,98616.0,98615.0,0.002]
[1735065392283,0.41930846,98616.0,98615.0,0.002]
[1735065394286,0.05850846,98616.0,98615.0,0.002]
[1735065394690,0.05852987,98616.0,98615.0,0.002]
[1735065395485,0.41932987,98616.0,98615.0,0.002]
[1735065397196,1.91932987,98616.0,98615.0,0.002]
[1735065400695,1.91935631,98616.0,98615.0,0.002]
[1735065400895,0.050739,98601.0,98600.0,0.1]
[1735065401085,0.41837984,98601.0,98600.0,0.1]
[1735065402103,0.41837984,98601.0,98600.0,0.103]
[1735065402695,0.41937984,98601.0,98600.0,0.103]
[1735065405798,0.05857984,98601.0,98600.0,0.103]
[1735065406493,0.00052001,98616.0,98600.0,0.51454]
[1735065406694,0.12101173,98622.0,98615.0,0.3608]
[1735065406888,0.12101173,98622.0,98616.0,0.1271]
[1735065407196,0.050731,98617.0,98616.0,0.1271]
[1735065407590,0.12101173,98619.0,98616.0,0.1271]
[1735065408497,0.12101173,98619.0,98616.0,0.1281]
[1735065408898,0.05073,98619.0,98618.0,0.050731]
[1735065409586,0.12101173,98640.0,98616.0,0.1281]
[1735065409786,0.050729,98623.0,98622.0,0.050728]
[1735065411090,0.052729,98623.0,98622.0,0.02535757]
[1735065412401,0.050731,98618.0,98617.0,0.1382]
[1735065412593,0.003,98623.0,98610.0,0.050734]
[1735065412789,0.003,98623.0,98613.0,0.050733]
[1735065412790,0.050732,98616.0,98613.0,0.050733]
[1735065412995,0.050732,98616.0,98610.0,0.09888957]
[1735065412996,0.003,98623.0,98610.0,0.09888957]
[1735065413190,0.050732,98616.0,98615.0,0.050732]
[1735065414001,0.051732,98616.0,98615.0,0.050732]
[1735065414194,0.050734,98611.0,98610.0,0.001]
[1735065414901,0.050738,98604.0,98603.0,0.1326]
[1735065415298,0.050738,98604.0,98603.0,0.04390955]
[1735065415592,0.050739,98601.0,98600.0,0.46144]
[1735065415798,0.050739,98601.0,98600.0,0.50476322]
[1735065415998,0.050739,98601.0,98600.0,0.4608]
[1735065416199,0.050739,98601.0,98600.0,0.50476191]
[1735065416393,0.050739,98601.0,98600.0,0.4608]
[1735065416692,0.050739,98601.0,98600.0,0.1]
[1735065416898,0.17163426,98601.0,98600.0,0.1]
[1735065417495,0.17163426,98601.0,98600.0,0.103]
[1735065417800,0.17263426,98601.0,98600.0,0.103]
[1735065418401,0.412539,98601.0,98600.0,0.103]
[1735065418601,0.4191165,98601.0,98600.0,0.103]
[1735065418801,0.7191165,98601.0,98600.0,0.103]
[1735065419305,1.07991971,98601.0,98600.0,0.103]
[1735065419802,0.8292633,98601.0,98600.0,0.1]
[1735065420005,0.8282633,98601.0,98600.0,0.1]
[1735065420405,0.8292633,98601.0,98600.0,0.1]
[1735065420607,2.3292633,98601.0,98600.0,0.1]
[1735065421003,2.3292633,98601.0,98600.0,0.07461667]
[1735065421602,0.050751,98579.0,98578.0,0.1271]
[1735065421807,0.05733171,98579.0,98578.0,0.1271]
[1735065422107,0.050751,98579.0,98578.0,0.1271]
[1735065422808,0.09888957,98590.0,98578.0,0.1271]
[1735065422809,0.3608,98600.0,98578.0,0.004]
[1735065423010,0.18122894,98595.0,98590.0,0.09888957]
[1735065423193,0.18122894,98595.0,98591.0,0.050744]
[1735065423194,0.050744,98592.0,98591.0,0.050744]
[1735065424007,0.411544,98592.0,98591.0,0.050744]
[1735065424907,0.3608,98592.0,98578.0,0.004]
[1735065425111,0.3608,98584.0,98578.0,0.004]
[1735065425301,0.050751,98579.0,98578.0,0.004]
[1735065425701,0.050751,98578.0,98577.0,0.050752]
[1735065426307,0.3608,98584.0,98574.0,0.2725]
[1735065426503,0.050749,98583.0,98578.0,0.004]
[1735065426715,0.3608,98584.0,98578.0,0.004]
[1735065426906,0.050751,98579.0,98578.0,0.054751]
[1735065427404,0.050751,98579.0,98578.0,0.050751]
[1735065427608,0.050749,98582.0,98581.0,0.050749]
[1735065427807,0.05075,98581.0,98576.0,0.050752]
[1735065428008,0.05075,98580.0,98578.0,0.050751]
[1735065428911,0.050751,98579.0,98578.0,0.054751]
[1735065429312,0.051751,98579.0,98578.0,0.054751]
[1735065429513,0.051751,98579.0,98578.0,0.004]
[1735065430011,0.050751,98579.0,98578.0,0.004]
[1735065430500,0.050759,98562.0,98561.0,0.24061656]
[1735065430705,0.411559,98562.0,98561.0,0.24061656]
[1735065431113,0.050759,98562.0,98561.0,0.24061656]
[1735065431416,0.050759,98562.0,98559.0,0.050761]
[1735065432121,0.3608,98570.0,98559.0,0.050761]
[1735065432411,0.3608,98570.0,98560.0,0.09888957]
[1735065432412,0.05076,98561.0,98560.0,0.09888957]
[1735065432629,0.3608,98570.0,98554.0,0.2568]
[1735065432630,0.001,98562.0,98554.0,0.2568]
[1735065432815,0.001,98562.0,98561.0,0.05076]
[1735065433118,0.002,98562.0,98561.0,0.05076]
[1735065434818,0.002,98562.0,98554.0,0.2648]
[1735065435114,0.050763,98555.0,98554.0,0.2648]
[1735065435421,0.3628,98562.0,98547.0,0.24061656]
[1735065435422,0.043764,98553.0,98547.0,0.24061656]
[1735065435718,0.404564,98553.0,98547.0,0.24061656]
[1735065436320,0.396564,98553.0,98547.0,0.24061656]
[1735065436815,0.396564,98553.0,98540.0,0.40287922]
[1735065436816,0.396564,98553.0,98540.0,0.09956957]
[1735065437023,0.397564,98553.0,98540.0,0.09888957]
[1735065437222,0.397564,98553.0,98552.0,0.00552193]
[1735065438213,0.397564,98553.0,98552.0,9.3e-07]
[1735065438614,1.897564,98553.0,98552.0,9.3e-07]
[1735065438814,1.897564,98553.0,98531.0,0.050775]
[1735065439017,0.050775,98532.0,98531.0,0.050775]
[1735065439627,0.36440001,98553.0,98532.0,0.050775]
[1735065439817,0.36440001,98553.0,98546.0,0.050768]
[1735065439818,0.050768,98547.0,98546.0,0.050768]
[1735065442226,0.051768,98547.0,98546.0,0.050768]
[1735065442526,0.053768,98547.0,98546.0,0.050768]
[1735065442722,0.3608,98553.0,98546.0,0.050768]
[1735065442929,0.3608,98553.0,98552.0,0.050765]
[1735065443221,0.3608,98559.0,98558.0,0.050761]
[1735065444319,0.050758,98565.0,98561.0,0.05076]
[1735065444623,0.3608,98574.0,98532.0,0.24061656]
[1735065444624,0.002,98553.0,98532.0,0.24061656]
[1735065444828,0.050774,98533.0,98532.0,0.24061656]
[1735065446019,0.050775,98531.0,98530.0,0.1337]
[1735065447028,0.051775,98531.0,98530.0,0.1337]
[1735065451125,0.051775,98531.0,98528.0,0.050777]
[1735065451427,0.050776,98529.0,98528.0,0.050777]
[1735065452627,0.051776,98529.0,98528.0,0.050777]
[1735065452827,0.001,98529.0,98528.0,0.050777]
[1735065453450,0.050779,98525.0,98524.0,0.050778]
[1735065454831,0.052779,98525.0,98524.0,0.050778]
[1735065455820,0.002,98525.0,98524.0,0.050778]
[1735065457122,0.001,98525.0,98524.0,0.050778]
[1735065457625,0.050777,98528.0,98522.0,0.1244]
[1735065457930,0.050777,98528.0,98526.0,0.050777]
[1735065458321,0.050773,98536.0,98527.0,0.050777]
[1735065458522,0.050777,98529.0,98527.0,0.050777]
[1735065458722,0.050777,98528.0,98527.0,0.050777]
[1735065458919,0.051777,98528.0,98527.0,0.050777]
[1735065459322,0.050777,98528.0,98527.0,0.050777]
[1735065461129,0.051777,98528.0,98527.0,0.050777]
[1735065462631,0.001,98528.0,98527.0,0.050777]
[1735065464530,0.001,98528.0,98527.0,0.23278524]
[1735065466433,0.001,98528.0,98527.0,0.050777]
[1735065468730,0.001,98528.0,98527.0,0.29139356]
[1735065470244,0.001,98528.0,98527.0,0.050777]
[1735065479040,0.001,98528.0,98524.0,0.30330965]
[1735065479041,0.050778,98525.0,98524.0,0.30330965]
[1735065479246,0.1375,98527.0,98522.0,0.30330965]
[1735065479744,0.050779,98524.0,98522.0,0.30330965]
[1735065480133,0.050779,98524.0,98523.0,0.050779]
[1735065480746,1.550779,98524.0,98523.0,0.050779]
[1735065481046,1.5,98524.0,98523.0,0.050779]
[1735065481236,0.12079888,98525.0,98524.0,0.050779]
[1735065483159,0.12079888,98527.0,98525.0,0.050777]
[1735065483738,0.12079888,98527.0,98526.0,0.050777]
[1735065484541,0.12079888,98527.0,98526.0,0.29439711]
[1735065484542,0.001,98527.0,98526.0,0.29439711]
[1735065486039,0.001,98527.0,98526.0,0.050777]
[1735065486640,0.001,98527.0,98522.0,0.30330965]
[1735065486841,0.001,98527.0,98526.0,0.050777]
[1735065487048,0.1214166,98529.0,98522.0,0.30330965]
[1735065487248,0.1214166,98529.0,98528.0,0.050776]
[1735065487641,0.1214166,98531.0,98530.0,0.050775]
[1735065489652,0.050778,98525.0,98516.0,0.24662315]
[1735065489952,0.7216,98517.0,98502.0,0.42599631]
[1735065490152,0.411589,98503.0,98502.0,0.42535631]
[1735065491146,0.411589,98503.0,98500.0,0.1]
[1735065491147,0.05079,98501.0,98500.0,0.28276737]
[1735065491651,0.050793,98496.0,98495.0,0.24368983]
[1735065492348,0.001,98503.0,98501.0,0.05079]
[1735065492650,0.001,98503.0,98502.0,0.138]
[1735065492850,0.18122894,98505.0,98502.0,0.138]
[1735065493552,0.001,98503.0,98502.0,0.138]
[1735065493781,0.12194749,98503.0,98502.0,0.138]
[1735065494053,0.12094749,98503.0,98502.0,0.138]
[1735065494642,0.12194749,98503.0,98502.0,0.138]
[1735065494957,0.12194749,98503.0,98490.0,0.050796]
[1735065494958,0.050794,98494.0,98490.0,0.050796]
[1735065495252,0.3608,98499.0,98490.0,0.050796]
[1735065495450,0.3608,98499.0,98491.0,0.132]
[1735065495850,0.3608,98499.0,98494.0,0.050794]
[1735065496040,0.001,98494.0,98492.0,0.050795]
[1735065496247,0.002,98494.0,98492.0,0.050795]
[1735065496850,0.002,98499.0,98498.0,0.050791]
[1735065497259,0.001,98499.0,98498.0,0.050791]
[1735065498041,0.002,98499.0,98491.0,0.182795]
[1735065498247,0.002,98499.0,98491.0,0.132]
[1735065498554,0.002,98499.0,98492.0,0.050795]
[1735065498754,0.002,98499.0,98491.0,0.132]
[1735065498949,0.002,98499.0,98495.0,0.050793]
[1735065498950,0.001,98499.0,98495.0,0.050793]
[1735065499363,0.14143591,98504.0,98495.0,0.050793]
[1735065499546,0.001,98499.0,98495.0,0.050793]
[1735065500656,0.001,98499.0,98491.0,0.132]
[1735065500857,0.001,98499.0,98496.0,0.050793]
[1735065501852,0.001,98499.0,98491.0,0.49352]
[1735065502053,0.001,98499.0,98491.0,0.4928]
[1735065502553,0.09064691,98503.0,98491.0,0.4928]
[1735065502755,0.001,98499.0,98498.0,0.050791]
[1735065503256,0.09064691,98502.0,98501.0,0.05079]
[1735065503653,0.09094749,98509.0,98508.0,0.050786]
[1735065504657,0.09094749,98509.0,98508.0,0.411586]
[1735065505050,0.050777,98526.0,98516.0,0.050782]
[1735065505355,0.050777,98526.0,98520.0,0.05078]
[1735065505554,0.15118437,98534.0,98522.0,0.050779]
[1735065506055,0.20195737,98534.0,98522.0,0.050779]
[1735065506359,0.00352341,98523.0,98522.0,0.050779]
[1735065508358,0.00552341,98523.0,98522.0,0.050779]
[1735065508947,0.3608,98540.0,98539.0,0.050771]
[1735065509153,0.14570438,98544.0,98543.0,0.050769]
[1735065509352,0.3608,98554.0,98544.0,0.050769]
[1735065509353,0.14570438,98545.0,98544.0,0.050769]
[1735065510857,0.18122894,98553.0,98552.0,0.050766]
[1735065511366,0.05076,98566.0,98551.0,0.3608]
[1735065511670,0.05076,98566.0,98561.0,0.050762]
[1735065512164,0.050759,98563.0,98561.0,0.050762]
[1735065512663,0.005,98566.0,98554.0,0.050763]
[1735065512854,0.014,98566.0,98561.0,0.050759]
[1735065513453,0.009,98563.0,98561.0,0.050759]
[1735065513859,0.009,98563.0,98562.0,0.05076]
[1735065514060,0.017,98563.0,98562.0,0.05076]
[1735065514955,0.058759,98563.0,98562.0,0.05076]
[1735065515155,0.008,98563.0,98562.0,0.05076]
[1735065515555,0.008,98563.0,98553.0,0.1334]
[1735065515756,0.017,98563.0,98553.0,0.1334]
[1735065516667,0.008,98563.0,98553.0,0.1334]
[1735065516867,0.015,98563.0,98556.0,0.3608]
[1735065517068,0.015,98563.0,98562.0,0.050759]
[1735065518067,0.013,98563.0,98562.0,0.050759]
[1735065518273,0.006,98563.0,98562.0,0.050759]
[1735065518565,0.015,98563.0,98562.0,0.050759]
[1735065518758,0.009,98563.0,98556.0,0.3608]
[1735065518961,0.050761,98558.0,98557.0,0.050762]
[1735065519466,0.050759,98562.0,98556.0,0.3608]
[1735065519664,0.050761,98559.0,98556.0,0.411562]
[1735065520255,0.050761,98559.0,98556.0,0.050762]
[1735065520669,0.008,98558.0,98556.0,0.050762]
[1735065521069,0.008,98558.0,98557.0,0.050762]
[1735065521568,0.3608,98584.0,98562.0,0.050759]
[1735065521865,0.3608,98584.0,98583.0,0.050749]
[1735065522074,0.3608,98595.0,98594.0,0.050743]
[1735065522662,0.1,98600.0,98599.0,0.05074]
[1735065523265,0.1,98600.0,98599.0,0.41154]
[1735065523467,0.07548527,98600.0,98599.0,0.41154]
[1735065523867,0.08448527,98600.0,98599.0,0.41154]
[1735065524071,0.3608,98611.0,98610.0,0.050735]
[1735065524367,0.3608,98632.0,98621.0,0.050729]
[1735065525166,0.3608,98632.0,98622.0,0.09894585]
[1735065525358,0.3608,98632.0,98628.0,0.050725]
[1735065526072,0.411523,98632.0,98629.0,0.050725]
[1735065526572,0.417523,98632.0,98629.0,0.050725]
[1735065527473,0.423523,98632.0,98629.0,0.051725]
[1735065527968,0.012,98632.0,98631.0,0.050724]
[1735065528167,0.3608,98651.0,98629.0,0.06279413]
[1735065528374,0.050714,98650.0,98641.0,0.09894585]
[1735065528564,0.050714,98650.0,98644.0,0.050717]
[1735065528763,0.3608,98651.0,98644.0,0.050717]
[1735065529060,0.050715,98649.0,98644.0,0.050717]
[1735065529274,0.3608,98651.0,98629.0,0.01206913]
[1735065529579,0.6608,98651.0,98629.0,0.002]
[1735065529772,0.6608,98651.0,98590.0,0.09894585]
[1735065529773,0.050731,98617.0,98590.0,0.09894585]
[1735065529976,0.006,98632.0,98588.0,0.24368983]
[1735065529977,0.3608,98600.0,98588.0,0.24368983]
[1735065530273,0.45974585,98600.0,98588.0,0.24368983]
[1735065530473,1.5,98599.0,98588.0,0.24368983]
[1735065530867,0.3608,98600.0,98588.0,0.24368983]
[1735065531263,0.3628,98600.0,98588.0,0.24368983]
[1735065531468,0.3628,98600.0,98580.0,0.09894585]
[1735065531779,0.00655632,98599.0,98580.0,0.09894585]
[1735065531973,0.00655632,98598.0,98588.0,0.007]
[1735065532170,0.00655632,98597.0,98588.0,0.007]
[1735065532472,0.00655632,98596.0,98580.0,0.09894585]
[1735065532668,0.00655632,98595.0,98580.0,0.10794585]
[1735065532974,0.00655632,98594.0,98580.0,0.10794585]
[1735065533269,0.00655632,98593.0,98588.0,0.006]
[1735065533475,0.3608,98591.0,98588.0,0.006]
[1735065533679,0.00655632,98590.0,98588.0,0.006]
[1735065533873,0.00655632,98589.0,98588.0,0.006]
[1735065534069,0.00655632,98589.0,98579.0,0.09894585]
[1735065534269,0.3608,98583.0,98562.0,0.1391]
[1735065534474,0.3608,98563.0,98562.0,0.1391]
[1735065534677,0.36735632,98563.0,98548.0,0.271]
[1735065534876,0.36735632,98563.0,98544.0,0.12772202]
[1735065534877,0.3608,98554.0,98544.0,0.12772202]
[1735065535077,0.3608,98546.0,98544.0,0.12772202]
[1735065535275,0.05732432,98545.0,98544.0,0.00152202]
[1735065536370,0.05746727,98545.0,98544.0,0.00452202]
[1735065536678,0.11746189,98545.0,98538.0,0.16266046]
[1735065536868,0.36749927,98544.0,98538.0,0.16266046]
[1735065537067,0.00987324,98543.0,98538.0,0.16266046]
[1735065537263,0.050772,98537.0,98525.0,0.1323]
[1735065537475,0.3608,98533.0,98525.0,0.1323]
[1735065537677,0.00987324,98532.0,98525.0,0.1323]
[1735065537979,0.00987324,98531.0,98525.0,0.1323]
[1735065538167,0.0098733,98530.0,98525.0,0.1323]
[1735065538370,0.0098733,98529.0,98525.0,0.1413]
[1735065538570,0.0098733,98528.0,98525.0,0.1413]
[1735065538773,0.0098733,98527.0,98525.0,0.1413]
[1735065538985,0.00987595,98526.0,98525.0,0.1413]
[1735065539171,0.00670192,98526.0,98525.0,0.1413]
[1735065539370,0.27483238,98533.0,98525.0,0.1433]
[1735065539676,0.3608,98555.0,98530.0,0.3608]
[1735065539869,0.18122894,98544.0,98539.0,0.411571]
[1735065540271,0.54202894,98544.0,98531.0,0.050775]
[1735065540865,0.54402894,98544.0,98531.0,0.050775]
[1735065541271,0.3628,98544.0,98531.0,0.050775]
[1735065541471,0.3628,98544.0,98525.0,0.1323]
[1735065541667,0.002,98544.0,98531.0,0.007]
[1735065541871,0.18122894,98555.0,98537.0,0.3608]
[1735065542173,0.57282593,98575.0,98537.0,0.3608]
[1735065542174,0.57338594,98575.0,98554.0,0.7216]
[1735065542382,0.57282593,98575.0,98567.0,0.3608]
[1735065542966,0.57282593,98575.0,98570.0,0.050755]
[1735065543372,0.57782593,98575.0,98570.0,0.050755]
[1735065543569,0.06420749,98574.0,98560.0,0.14840335]
[1735065543775,0.06420749,98574.0,98560.0,0.2968067]
[1735065543978,0.15024999,98574.0,98570.0,0.050755]
[1735065544176,0.13486287,98574.0,98572.0,0.050754]
[1735065544376,0.3698,98575.0,98574.0,0.050753]
[1735065544377,0.009,98575.0,98574.0,0.050753]
[1735065544573,0.3608,98587.0,98585.0,0.050748]
[1735065544775,0.33919045,98587.0,98585.0,0.050748]
[1735065545679,0.31884043,98587.0,98585.0,0.050748]
[1735065545879,0.21202593,98601.0,98586.0,0.489]
[1735065546183,0.0778364,98601.0,98599.0,0.05074]
[1735065546385,0.3608,98613.0,98612.0,0.050734]
[1735065546685,0.24231535,98615.0,98613.0,0.050733]
[1735065547679,0.002,98615.0,98605.0,0.050737]
[1735065547879,0.3608,98614.0,98600.0,0.14840335]
[1735065548083,0.3608,98612.0,98600.0,0.14840335]
[1735065548386,0.05074,98600.0,98594.0,0.3608]
[1735065548886,0.3608,98595.0,98581.0,0.341]
[1735065549088,0.411543,98595.0,98586.0,0.050747]
[1735065549384,0.3608,98595.0,98581.0,0.341]
[1735065549585,0.3608,98595.0,98590.0,0.050745]
[1735065549785,0.050739,98602.0,98590.0,0.050745]
[1735065549986,0.050739,98601.0,98590.0,0.19914835]
[1735065550185,1.5,98600.0,98590.0,0.19914835]
[1735065550482,0.06250657,98594.0,98590.0,0.19914835]
[1735065550790,0.06250657,98594.0,98590.0,0.20114835]
[1735065551083,0.42330657,98594.0,98590.0,0.052745]
[1735065551288,0.050744,98592.0,98590.0,0.002]
[1735065551585,0.00992056,98591.0,98590.0,0.002]
[1735065551781,0.050748,98584.0,98579.0,0.00137401]
[1735065551983,0.3608,98582.0,98579.0,0.00137401]
[1735065552188,0.06574643,98581.0,98579.0,0.00137401]
[1735065552486,0.06574643,98580.0,98573.0,0.050753]
[1735065552690,0.00992056,98579.0,98573.0,0.050753]
[1735065552989,0.3608,98574.0,98570.0,0.14896335]
[1735065553191,0.00992056,98573.0,98570.0,0.14840335]
[1735065553387,0.00991508,98572.0,98570.0,0.14840335]
[1735065553578,0.00991508,98571.0,98570.0,0.19915835]
[1735065554687,0.07242165,98571.0,98570.0,0.19915835]
[1735065554894,0.07749775,98571.0,98570.0,0.19915835]
[1735065555184,0.07749775,98571.0,98570.0,0.20215835]
[1735065556089,0.07849775,98571.0,98570.0,0.20215835]
[1735065556686,0.07849775,98571.0,98570.0,0.003]
[1735065556988,0.07749775,98571.0,98570.0,0.003]
[1735065558285,0.08874802,98571.0,98558.0,0.050761]
[1735065558485,0.3608,98562.0,98558.0,0.050761]
[1735065558788,0.02624145,98561.0,98550.0,0.00152195]
[1735065558990,0.050765,98552.0,98550.0,0.00152195]
[1735065559187,0.02624145,98551.0,98550.0,0.00152195]
[1735065560091,0.02624145,98551.0,98550.0,0.00252195]
[1735065560782,0.02624145,98551.0,98550.0,0.00852195]
[1735065560987,0.08874802,98551.0,98550.0,0.00852195]
[1735065561683,0.08904448,98551.0,98550.0,0.00852195]
[1735065562288,0.13980365,98551.0,98550.0,0.00852195]
[1735065564995,0.13979793,98551.0,98550.0,0.00852195]
[1735065565196,0.13979793,98551.0,98540.0,0.13034094]
[1735065565494,0.02652636,98550.0,98548.0,0.050766]
[1735065565679,0.02652636,98549.0,98548.0,0.050766]
[1735065566781,0.02652636,98549.0,98548.0,0.057766]
[1735065567794,0.09055943,98549.0,98548.0,0.057766]
[1735065568988,0.09055943,98549.0,98548.0,0.058766]
[1735065569194,0.02652636,98549.0,98548.0,0.058766]
[1735065570797,0.02682971,98549.0,98548.0,0.058766]
[1735065570996,0.3608,98587.0,98574.0,0.050752]
[1735065571195,0.3608,98575.0,98558.0,0.101522]
[1735065571390,0.17020469,98576.0,98565.0,0.050756]
[1735065571595,0.17020469,98568.0,98567.0,0.050756]
[1735065572104,0.004,98576.0,98560.0,0.050759]
[1735065572291,0.004,98576.0,98575.0,0.050752]
[1735065572493,0.005,98576.0,98575.0,0.050752]
[1735065572887,0.3608,98587.0,98583.0,0.050747]
[1735065573192,0.3608,98587.0,98569.0,0.050755]
[1735065573390,0.3608,98587.0,98570.0,0.050754]
[1735065573593,0.3608,98587.0,98582.0,0.050748]
[1735065574203,0.411546,98587.0,98582.0,0.050748]
[1735065574589,0.15079197,98583.0,98582.0,0.050748]
[1735065574790,0.050751,98576.0,98575.0,0.009]
[1735065575198,1.550751,98576.0,98575.0,0.007]
[1735065575393,0.050764,98551.0,98550.0,0.00152198]
[1735065575599,0.411564,98551.0,98550.0,0.00152198]
[1735065575792,0.3608,98551.0,98531.0,0.411574]
[1735065575996,0.050774,98533.0,98531.0,0.411574]
[1735065576196,1.550774,98533.0,98531.0,0.411574]
[1735065576508,0.050774,98533.0,98531.0,0.411574]
[1735065577101,0.050774,98533.0,98531.0,0.420574]
[1735065577400,0.050774,98533.0,98531.0,0.3698]
[1735065577696,0.15074004,98532.0,98531.0,0.3698]
[1735065579204,0.15074004,98532.0,98531.0,0.3628]
[1735065579497,0.050774,98533.0,98531.0,0.3628]
[1735065579805,0.001,98532.0,98531.0,0.3618]
[1735065579990,0.001,98532.0,98531.0,0.001]
[1735065580599,0.051774,98532.0,98531.0,0.001]
[1735065580796,0.412574,98532.0,98531.0,0.001]
[1735065581100,0.42880775,98532.0,98531.0,0.001]
[1735065581492,0.42780775,98532.0,98531.0,0.001]
[1735065581911,0.050775,98529.0,98512.0,0.050784]
[1735065582099,0.3608,98514.0,98501.0,0.48254]
[1735065582298,0.01623375,98513.0,98501.0,0.48254]
[1735065582614,0.01115497,98512.0,98511.0,0.050785]
[1735065582796,0.00507897,98512.0,98511.0,0.050785]
[1735065583104,0.01522914,98512.0,98511.0,0.050785]
[1735065584002,0.01622914,98512.0,98511.0,0.059785]
[1735065585109,0.01622914,98512.0,98511.0,0.062785]
[1735065585622,0.001,98512.0,98511.0,0.062785]
[1735065585799,0.01621324,98512.0,98511.0,0.062785]
[1735065588603,0.00796083,98512.0,98511.0,0.062785]